fUSD/lending_fUSD_20260501
["ID","MTS","AMOUNT","RATE_DAILY","PERIOD"]
[421409525,1777581040000,-151.0,0.00010494,2]
[421409526,1777581040000,-151.0,0.00010494,2]
[421409523,1777581040000,-151.0,0.00010494,2]
[421409515,1777581040000,-151.0,0.00010494,2]
[421409517,1777581040000,-151.0,0.00010494,2]
[421409506,1777581040000,-324.0,0.00010411,2]
[421409505,1777581040000,-34752.83844709,0.000104,2]
[421409508,1777581040000,-454.6082771,0.0001049,2]
[421409516,1777581040000,-151.0,0.00010494,2]
[421409509,1777581040000,-200.0,0.00010494,2]
[421409513,1777581040000,-151.0,0.00010494,2]
[421409522,1777581040000,-151.0,0.00010494,2]
[421409514,1777581040000,-151.0,0.00010494,2]
[421409536,1777581040000,-150.0,0.000108,2]
[421409520,1777581040000,-151.0,0.00010494,2]
[421409518,1777581040000,-151.0,0.00010494,2]
[421409519,1777581040000,-151.0,0.00010494,2]
[421409507,1777581040000,-250.0,0.00010452,2]
[421409512,1777581040000,-151.0,0.00010494,2]
[421409511,1777581040000,-151.0,0.00010494,2]
[421409538,1777581040000,-150.0,0.000108,2]
[421409510,1777581040000,-151.0,0.00010494,2]
[421409539,1777581040000,-150.0,0.000108,2]
[421409561,1777581040000,-483.19485516,0.00011098,2]
[421409560,1777581040000,-500.0,0.00011098,2]
[421409563,1777581040000,-500.0,0.00011098,2]
[421409565,1777581040000,-500.0,0.00011098,2]
[421409564,1777581040000,-500.0,0.00011098,2]
[421409567,1777581040000,-500.0,0.00011098,2]
[421409562,1777581040000,-500.0,0.00011098,2]
[421409566,1777581040000,-500.0,0.00011098,2]
[421409570,1777581040000,-500.0,0.00011098,2]
[421409572,1777581040000,-500.0,0.00011098,2]
[421409569,1777581040000,-500.0,0.00011098,2]
[421409573,1777581040000,-500.0,0.00011098,2]
[421409574,1777581040000,-500.0,0.00011098,2]
[421409543,1777581040000,-500.0,0.00010959,2]
[421409568,1777581040000,-500.0,0.00011098,2]
[421409558,1777581040000,-500.0,0.00011098,2]
[421409571,1777581040000,-500.0,0.00011098,2]
[421409557,1777581040000,-500.0,0.00011098,2]
[421409559,1777581040000,-500.0,0.00011098,2]
[421409540,1777581040000,-150.0,0.000108,2]
[421409545,1777581040000,-250.0,0.00011,2]
[421409546,1777581040000,-642.28671625,0.00011,2]
[421409556,1777581040000,-500.0,0.00011098,2]
[421409547,1777581040000,-200.0,0.00011042,2]
[421409549,1777581040000,-2001.04,0.00011078,2]
[421409541,1777581040000,-150.0,0.000108,2]
[421409550,1777581040000,-500.0,0.00011098,2]
[421409555,1777581040000,-500.0,0.00011098,2]
[421409551,1777581040000,-500.0,0.00011098,2]
[421409554,1777581040000,-500.0,0.00011098,2]
[421409542,1777581040000,-2001.04,0.00010808,2]
[421409553,1777581040000,-399.32997073,0.00011098,2]
[421409548,1777581040000,-681.04,0.00011042,2]
[421409552,1777581040000,-465.72395313,0.00011098,2]
[421409618,1777581041000,-681.07,0.00011864,2]
[421409607,1777581041000,-350.0,0.00011577,2]
[421409608,1777581041000,-200.0,0.0001159,2]
[421409611,1777581041000,-150.0,0.000117,2]
[421409609,1777581041000,-681.04,0.0001159,2]
[421409612,1777581041000,-168.85095587,0.0001176,2]
[421409613,1777581041000,-1267.0,0.00011837,2]
[421409616,1777581041000,-2305.64,0.00011853,2]
[421409614,1777581041000,-6037.0,0.00011837,2]
[421409617,1777581041000,-198.241,0.00011853,2]
[421409615,1777581041000,-637.139,0.00011837,2]
[421409606,1777581041000,-1680.0,0.00011438,2]
[421409610,1777581041000,-2001.04,0.00011618,2]
[421409624,1777581041000,-500.0,0.00011873,2]
[421409622,1777581041000,-500.0,0.00011873,2]
[421409621,1777581041000,-500.0,0.00011873,2]
[421409619,1777581041000,-5000.0,0.00011869,2]
[421409627,1777581041000,-118403.43203772,0.0001188,2]
[421409623,1777581041000,-500.0,0.00011873,2]
[421409629,1777581041000,-573.85559584,0.00011899,2]
[421409626,1777581041000,-500.0,0.00011873,2]
[421409628,1777581041000,-2001.04,0.00011889,2]
[421409631,1777581041000,-21715.8895,0.000119,2]
[421409630,1777581041000,-573.85559582,0.000119,2]
[421409635,1777581041000,-3000.24040758,0.000119,2]
[421409634,1777581041000,-213.09582624,0.000119,2]
[421409605,1777581041000,-420.0,0.00011433,2]
[421409620,1777581041000,-500.0,0.00011873,2]
[421409603,1777581041000,-255.0,0.00011417,2]
[421409580,1777581041000,-500.0,0.00011098,2]
[421409595,1777581041000,-500.0,0.00011098,2]
[421409633,1777581041000,-271.49761894,0.000119,2]
[421409579,1777581041000,-500.0,0.00011098,2]
[421409575,1777581041000,-500.0,0.00011098,2]
[421409577,1777581041000,-500.0,0.00011098,2]
[421409576,1777581041000,-500.0,0.00011098,2]
[421409578,1777581041000,-500.0,0.00011098,2]
[421409581,1777581041000,-500.0,0.00011098,2]
[421409592,1777581041000,-500.0,0.00011098,2]
[421409591,1777581041000,-500.0,0.00011098,2]
[421409593,1777581041000,-350.0,0.00011098,2]
[421409588,1777581041000,-500.0,0.00011098,2]
[421409582,1777581041000,-500.0,0.00011098,2]
[421409587,1777581041000,-500.0,0.00011098,2]
[421409584,1777581041000,-500.0,0.00011098,2]
[421409586,1777581041000,-500.0,0.00011098,2]
[421409583,1777581041000,-500.0,0.00011098,2]
[421409589,1777581041000,-500.0,0.00011098,2]
[421409590,1777581041000,-500.0,0.00011098,2]
[421409585,1777581041000,-500.0,0.00011098,2]
[421409594,1777581041000,-500.0,0.00011098,2]
[421409596,1777581041000,-500.0,0.00011098,2]
[421409597,1777581041000,-31194.15419436,0.00011099,2]
[421409601,1777581041000,-150.0,0.000114,2]
[421409599,1777581041000,-681.04,0.00011316,2]
[421409598,1777581041000,-150.0,0.000111,2]
[421409600,1777581041000,-2001.04,0.00011348,2]
[421409602,1777581041000,-150.0,0.000114,2]
[421409604,1777581041000,-300.0,0.00011432,2]
[421409638,1777581041000,-573.85559582,0.000119,2]
[421409625,1777581041000,-500.0,0.00011873,2]
[421409636,1777581041000,-234.96895484,0.000119,2]
[421409677,1777581041000,-151.0,0.00011969,2]
[421409669,1777581041000,-165.363668,0.00011969,2]
[421409678,1777581041000,-151.0,0.00011969,2]
[421409670,1777581041000,-165.363668,0.00011969,2]
[421409671,1777581041000,-165.363668,0.00011969,2]
[421409672,1777581041000,-165.363668,0.00011969,2]
[421409675,1777581041000,-233.442321,0.00011969,2]
[421409674,1777581041000,-151.0,0.00011969,2]
[421409673,1777581041000,-151.0,0.00011969,2]
[421409676,1777581041000,-151.0,0.00011969,2]
[421409679,1777581041000,-151.0,0.00011969,2]
[421409690,1777581041000,-1160.374139,0.00011969,2]
[421409691,1777581041000,-1160.374139,0.00011969,2]
[421409687,1777581041000,-233.45,0.00011969,2]
[421409688,1777581041000,-233.45,0.00011969,2]
[421409680,1777581041000,-157.830296,0.00011969,2]
[421409685,1777581041000,-233.45,0.00011969,2]
[421409682,1777581041000,-233.45,0.00011969,2]
[421409681,1777581041000,-233.45,0.00011969,2]
[421409686,1777581041000,-233.45,0.00011969,2]
[421409683,1777581041000,-233.45,0.00011969,2]
[421409684,1777581041000,-233.45,0.00011969,2]
[421409689,1777581041000,-1160.374139,0.00011969,2]
[421409692,1777581041000,-1160.374139,0.00011969,2]
[421409695,1777581041000,-1160.374139,0.00011969,2]
[421409693,1777581041000,-1160.374139,0.00011969,2]
[421409696,1777581041000,-1160.374139,0.00011969,2]
[421409668,1777581041000,-165.363668,0.00011969,2]
[421409666,1777581041000,-165.363668,0.00011969,2]
[421409632,1777581041000,-1434.4731,0.000119,2]
[421409658,1777581041000,-273.070371,0.00011969,2]
[421409667,1777581041000,-165.363668,0.00011969,2]
[421409637,1777581041000,-9969.28977789,0.000119,2]
[421409640,1777581041000,-2253.4657237,0.00011913,2]
[421409639,1777581041000,-5342.2257792,0.000119,2]
[421409642,1777581041000,-500.0,0.00011968,2]
[421409694,1777581041000,-1160.374139,0.00011969,2]
[421409641,1777581041000,-300.0,0.00011968,2]
[421409644,1777581041000,-500.0,0.00011968,2]
[421409643,1777581041000,-179.27648955,0.00011968,2]
[421409645,1777581041000,-172.72405806,0.00011968,2]
[421409646,1777581041000,-163.83542585,0.00011968,2]
[421409651,1777581041000,-465.97011497,0.00011968,2]
[421409648,1777581041000,-500.0,0.00011968,2]
[421409647,1777581041000,-500.0,0.00011968,2]
[421409652,1777581041000,-500.0,0.00011968,2]
[421409649,1777581041000,-350.06238099,0.00011968,2]
[421409650,1777581041000,-277.79291099,0.00011968,2]
[421409660,1777581041000,-273.070371,0.00011969,2]
[421409663,1777581041000,-151.0,0.00011969,2]
[421409661,1777581041000,-273.070371,0.00011969,2]
[421409665,1777581041000,-165.363668,0.00011969,2]
[421409662,1777581041000,-151.0,0.00011969,2]
[421409664,1777581041000,-151.0,0.00011969,2]
[421409657,1777581041000,-13614.2306618,0.00011969,2]
[421409655,1777581041000,-170836.8497514,0.00011969,2]
[421409659,1777581041000,-273.070371,0.00011969,2]
[421409653,1777581041000,-500.0,0.00011968,2]
[421409654,1777581041000,-250.0,0.00011968,2]
[421409656,1777581041000,-131805.9726622,0.00011969,2]
[421409715,1777581042000,-1468.031763,0.00011969,2]
[421409725,1777581042000,-300.0,0.00011999,2]
[421409717,1777581042000,-1468.031763,0.00011969,2]
[421409719,1777581042000,-1468.031763,0.00011969,2]
[421409720,1777581042000,-1468.031763,0.00011969,2]
[421409721,1777581042000,-179.0,0.00011969,2]
[421409723,1777581042000,-500.0,0.00011973,2]
[421409722,1777581042000,-179.0,0.00011969,2]
[421409728,1777581042000,-151.0,0.00011999,2]
[421409729,1777581042000,-1000.0,0.00011999,2]
[421409740,1777581042000,-273.070371,0.00012,2]
[421409739,1777581042000,-478.88258606,0.00012,2]
[421409733,1777581042000,-151.0,0.00011999,2]
[421409730,1777581042000,-1000.0,0.00011999,2]
[421409734,1777581042000,-158.0,0.00012,5]
[421409738,1777581042000,-942420.15896399,0.00012,2]
[421409718,1777581042000,-1468.031763,0.00011969,2]
[421409724,1777581042000,-224.46986341,0.0001199,2]
[421409726,1777581042000,-666.0,0.00011999,2]
[421409699,1777581042000,-204.527714,0.00011969,2]
[421409716,1777581042000,-1468.031763,0.00011969,2]
[421409698,1777581042000,-204.527714,0.00011969,2]
[421409697,1777581042000,-204.527714,0.00011969,2]
[421409700,1777581042000,-204.527714,0.00011969,2]
[421409702,1777581042000,-204.527714,0.00011969,2]
[421409737,1777581042000,-160746.49707553,0.00012,2]
[421409703,1777581042000,-204.527714,0.00011969,2]
[421409705,1777581042000,-152.139087,0.00011969,2]
[421409708,1777581042000,-152.139087,0.00011969,2]
[421409706,1777581042000,-152.139087,0.00011969,2]
[421409707,1777581042000,-152.139087,0.00011969,2]
[421409709,1777581042000,-152.139087,0.00011969,2]
[421409714,1777581042000,-1468.031763,0.00011969,2]
[421409710,1777581042000,-152.139087,0.00011969,2]
[421409704,1777581042000,-204.527714,0.00011969,2]
[421409711,1777581042000,-152.139087,0.00011969,2]
[421409712,1777581042000,-152.139087,0.00011969,2]
[421409713,1777581042000,-1468.031763,0.00011969,2]
[421409727,1777581042000,-151.0,0.00011999,2]
[421409736,1777581042000,-294.0,0.00012,5]
[421409701,1777581042000,-204.527714,0.00011969,2]
[421409732,1777581042000,-535.03256859,0.00011999,2]
[421409757,1777581042000,-165.363668,0.00012,2]
[421409779,1777581042000,-14637.31840052,0.00012,2]
[421409764,1777581042000,-151.0,0.00012,2]
[421409762,1777581042000,-240.973458,0.00012,2]
[421409763,1777581042000,-151.0,0.00012,2]
[421409768,1777581042000,-704.97223356,0.00012,2]
[421409769,1777581042000,-233.45,0.00012,2]
[421409770,1777581042000,-233.45,0.00012,2]
[421409756,1777581042000,-165.363668,0.00012,2]
[421409767,1777581042000,-313.0,0.00012,2]
[421409775,1777581042000,-233.45,0.00012,2]
[421409772,1777581042000,-233.45,0.00012,2]
[421409735,1777581042000,-337.0,0.00012,5]
[421409776,1777581042000,-233.45,0.00012,2]
[421409774,1777581042000,-233.45,0.00012,2]
[421409771,1777581042000,-233.45,0.00012,2]
[421409773,1777581042000,-233.45,0.00012,2]
[421409778,1777581042000,-1323.12656741,0.00012,2]
[421409777,1777581042000,-867745.6802131,0.00012,2]
[421409754,1777581042000,-165.363668,0.00012,2]
[421409761,1777581042000,-150.0,0.00012,2]
[421409760,1777581042000,-150.0,0.00012,2]
[421409731,1777581042000,-1000.0,0.00011999,2]
[421409742,1777581042000,-273.070371,0.00012,2]
[421409752,1777581042000,-165.363668,0.00012,2]
[421409753,1777581042000,-165.363668,0.00012,2]
[421409745,1777581042000,-273.070371,0.00012,2]
[421409758,1777581042000,-151.0,0.00012,2]
[421409743,1777581042000,-273.070371,0.00012,2]
[421409746,1777581042000,-273.070371,0.00012,2]
[421409751,1777581042000,-165.363668,0.00012,2]
[421409744,1777581042000,-273.070371,0.00012,2]
[421409747,1777581042000,-273.070371,0.00012,2]
[421409748,1777581042000,-151.0,0.00012,2]
[421409750,1777581042000,-165.363668,0.00012,2]
[421409749,1777581042000,-151.0,0.00012,2]
[421409755,1777581042000,-165.363668,0.00012,2]
[421409766,1777581042000,-151.0,0.00012,2]
[421409765,1777581042000,-151.0,0.00012,2]
[421409759,1777581042000,-151.0,0.00012,2]
[421409741,1777581042000,-273.070371,0.00012,2]
[421409786,1777581043000,-608.0,0.00011709,2]
[421409800,1777581046000,-3831.2647929,0.00012,2]
[421409799,1777581046000,-168.85095587,0.0001176,2]
[421409798,1777581046000,-15.0,0.00011709,2]
[421409802,1777581170000,500.0,0.00027849,120]
[421409803,1777581171000,446.91223808,0.00027849,120]
[421409805,1777581198000,1116.94,0.00027849,120]
[421409804,1777581198000,1116.94,0.00027849,120]
[421409807,1777581198000,1116.94,0.00027849,120]
[421409806,1777581198000,1116.94,0.00027849,120]
[421409808,1777581199000,1117.02,0.00027849,120]
[421409809,1777581944000,-150.0,9.409e-05,2]
[421409810,1777581944000,-750.006094,9.409e-05,2]
[421409812,1777582166000,-4991.199952,9.409e-05,2]
[421409811,1777582166000,-150.0,9.408e-05,2]
[421409822,1777582232000,-1200.0,9.408e-05,2]
[421409824,1777582232000,-47615.30832228,9.409e-05,2]
[421409821,1777582232000,-300.0,9.408e-05,2]
[421409823,1777582232000,-70584.34865213,9.409e-05,2]
[421409857,1777582238000,-500.0,0.00010298,2]
[421409861,1777582238000,-500.0,0.00010298,2]
[421409862,1777582238000,-220.42566172,0.00010298,2]
[421409873,1777582238000,-500.0,0.00010673,2]
[421409863,1777582238000,-500.0,0.00010298,2]
[421409867,1777582238000,-255.0,0.00010349,2]
[421409864,1777582238000,-500.0,0.00010298,2]
[421409872,1777582238000,-232.71224484,0.0001057,2]
[421409868,1777582238000,-1680.0,0.00010349,2]
[421409871,1777582238000,-300.0,0.0001035,2]
[421409870,1777582238000,-206.96224548,0.0001035,2]
[421409860,1777582238000,-500.0,0.00010298,2]
[421409869,1777582238000,-420.0,0.00010349,2]
[421409875,1777582238000,-176449.58788701,0.000107,2]
[421409885,1777582238000,-880.819058,0.000107,2]
[421409866,1777582238000,-595.0436667,0.00010298,2]
[421409856,1777582238000,-500.0,0.00010298,2]
[421409854,1777582238000,-500.0,0.00010298,2]
[421409859,1777582238000,-188.40340421,0.00010298,2]
[421409839,1777582238000,-380.52932165,9.409e-05,2]
[421409840,1777582238000,-5839.28315032,9.409e-05,2]
[421409841,1777582238000,-170.99842479,9.616e-05,2]
[421409842,1777582238000,-150.0,9.7e-05,2]
[421409844,1777582238000,-105753.1778,0.00010199,2]
[421409846,1777582238000,-7117.9968,0.00010199,2]
[421409845,1777582238000,-380.5293,0.00010199,2]
[421409848,1777582238000,-500.0,0.00010298,2]
[421409849,1777582238000,-500.0,0.00010298,2]
[421409847,1777582238000,-173.57953121,0.00010298,2]
[421409843,1777582238000,-259.49647245,0.0001,2]
[421409851,1777582238000,-500.0,0.00010298,2]
[421409850,1777582238000,-219.56979092,0.00010298,2]
[421409852,1777582238000,-500.0,0.00010298,2]
[421409886,1777582238000,-880.819058,0.000107,2]
[421409855,1777582238000,-500.0,0.00010298,2]
[421409853,1777582238000,-500.0,0.00010298,2]
[421409858,1777582238000,-294.64368209,0.00010298,2]
[421409877,1777582238000,-151.0,0.000107,2]
[421409865,1777582238000,-183.45987946,0.00010298,2]
[421409879,1777582238000,-151.0,0.000107,2]
[421409911,1777582238000,-623.0,0.00011869,2]
[421409918,1777582238000,-880.819058,0.00011869,2]
[421409915,1777582238000,-151.0,0.00011869,2]
[421409917,1777582238000,-880.819058,0.00011869,2]
[421409919,1777582238000,-880.819058,0.00011869,2]
[421409905,1777582238000,-2351.0,0.00011384,2]
[421409903,1777582238000,-433.0,0.00011384,2]
[421409913,1777582238000,-151.0,0.00011869,2]
[421409914,1777582238000,-151.0,0.00011869,2]
[421409916,1777582238000,-164.669037,0.00011869,2]
[421409912,1777582238000,-1263.608,0.00011869,2]
[421409907,1777582238000,-1022.06145725,0.00011768,2]
[421409910,1777582238000,-1350.0,0.00011869,2]
[421409909,1777582238000,-3533.0,0.00011869,2]
[421409880,1777582238000,-151.0,0.000107,2]
[421409922,1777582238000,-2774.407,0.00011869,2]
[421409920,1777582238000,-880.819058,0.00011869,2]
[421409900,1777582238000,-7510.57,0.00011134,2]
[421409921,1777582238000,-416.0,0.00011869,2]
[421409897,1777582238000,-28074.73877487,0.00011099,2]
[421409898,1777582238000,-150.0,0.00011134,2]
[421409874,1777582238000,-500.53133547,0.00010673,2]
[421409878,1777582238000,-151.0,0.000107,2]
[421409882,1777582238000,-151.0,0.000107,2]
[421409887,1777582238000,-880.819058,0.000107,2]
[421409876,1777582238000,-151.0,0.000107,2]
[421409881,1777582238000,-151.0,0.000107,2]
[421409883,1777582238000,-880.819058,0.000107,2]
[421409888,1777582238000,-3042.13737708,0.000109,2]
[421409901,1777582238000,-1000.0,0.00011221,2]
[421409889,1777582238000,-151.0,0.00010959,2]
[421409891,1777582238000,-151.0,0.00010959,2]
[421409893,1777582238000,-151.0,0.00010959,2]
[421409899,1777582238000,-1544.49,0.00011134,2]
[421409895,1777582238000,-178.8,0.00010959,2]
[421409902,1777582238000,-460.0,0.00011233,2]
[421409890,1777582238000,-151.0,0.00010959,2]
[421409896,1777582238000,-500.0,0.00010959,2]
[421409945,1777582239000,-151.0,0.00011999,2]
[421409944,1777582239000,-696.224483,0.00011999,2]
[421409934,1777582239000,-448.98232598,0.00011973,2]
[421409931,1777582239000,-500.0,0.00011973,2]
[421409930,1777582239000,-500.0,0.00011973,2]
[421409929,1777582239000,-151.0,0.000119,2]
[421409927,1777582239000,-151.0,0.000119,2]
[421409926,1777582239000,-1844.512,0.000119,2]
[421409923,1777582239000,-239.0,0.000119,5]
[421409925,1777582239000,-978.1812,0.000119,2]
[421409924,1777582239000,-153.0,0.000119,5]
[421409932,1777582239000,-500.0,0.00011973,2]
[421409928,1777582239000,-151.0,0.000119,2]
[421409936,1777582239000,-3539.3445133,0.00011997,2]
[421409937,1777582239000,-30838.67148393,0.00011999,2]
[421409935,1777582239000,-500.0,0.00011973,2]
[421409949,1777582239000,-32033.97337018,0.00012,2]
[421409948,1777582239000,-189.332578,0.00011999,2]
[421409933,1777582239000,-500.0,0.00011973,2]
[421409947,1777582239000,-151.0,0.00011999,2]
[421409950,1777582239000,-2149.54225841,0.00012,2]
[421409951,1777582239000,-2050.45774159,0.00012,2]
[421409940,1777582239000,-696.224483,0.00011999,2]
[421409943,1777582239000,-696.224483,0.00011999,2]
[421409939,1777582239000,-28259.5913977,0.00011999,2]
[421409941,1777582239000,-250.0,0.00011999,2]
[421409938,1777582239000,-5789.25570407,0.00011999,2]
[421409946,1777582239000,-151.0,0.00011999,2]
[421409942,1777582239000,-696.224483,0.00011999,2]
[421409986,1777582243000,-296318.7910985,0.00012,2]
[421409985,1777582243000,-928.0,0.00011869,2]
[421410033,1777582246000,-3000.00000576,0.00012,2]
[421410032,1777582246000,-4192.81052465,0.00012,2]
[421410055,1777582411000,251.94,0.000164,120]
[421410056,1777582603000,226.74,0.000164,120]
[421410057,1777582792000,204.07,0.000164,120]
[421410060,1777582982000,183.66,0.000164,120]
[421410061,1777583171000,165.3,0.000164,120]
[421410064,1777583199000,-1122.31256575,0.00011698,2]
[421410063,1777583199000,-334.5,0.00011649,2]
[421410062,1777583199000,-194.00072509,0.000116,2]
[421410065,1777583360000,150.0,0.000146,120]
[421410072,1777583431000,-150.0,0.00011582,2]
[421410080,1777583431000,-25267.26489741,0.000117,2]
[421410077,1777583431000,-6058.940197,0.00011583,2]
[421410078,1777583431000,-1475.61,0.00011699,2]
[421410076,1777583431000,-7853.1362059,0.00011583,2]
[421410082,1777583431000,-31967.03188588,0.000117,2]
[421410074,1777583431000,-1200.0,0.00011582,2]
[421410073,1777583431000,-300.0,0.00011582,2]
[421410075,1777583431000,-26748.6733144,0.00011583,2]
[421410083,1777583431000,-310.51596468,0.00011799,2]
[421410079,1777583431000,-2500.0,0.000117,2]
[421410084,1777583431000,-178540.70475091,0.000118,2]
[421410085,1777583431000,-380.0,0.000118,2]
[421410086,1777583431000,-484.5,0.000118,2]
[421410081,1777583431000,-2661.87020498,0.000117,2]
[421410089,1777583437000,-56896.13881955,0.000118,2]
[421410088,1777583437000,-3123.75116919,0.000118,2]
[421410151,1777583439000,-623.0,0.00011869,2]
[421410146,1777583439000,-3430.82189468,0.000118,2]
[421410145,1777583439000,-3314.20237119,0.000118,2]
[421410150,1777583439000,-150.0,0.00011869,2]
[421410142,1777583439000,-25024.37094305,0.000118,2]
[421410144,1777583439000,-1363.89990248,0.000118,2]
[421410147,1777583439000,-550.710994,0.000118,2]
[421410148,1777583439000,-1187.7471534,0.000118,2]
[421410141,1777583439000,-49857.8208173,0.000118,2]
[421410149,1777583439000,-150.0,0.00011869,2]
[421410152,1777583439000,-3533.0,0.00011869,2]
[421410143,1777583439000,-5000.0,0.000118,2]
[421410162,1777583439000,-500.0,0.00011899,2]
[421410161,1777583439000,-500.0,0.00011899,2]
[421410163,1777583439000,-553.69885364,0.00011899,2]
[421410167,1777583439000,-149573.13789166,0.000119,2]
[421410164,1777583439000,-154.0,0.000119,5]
[421410166,1777583439000,-250.0,0.000119,2]
[421410165,1777583439000,-150.0,0.000119,5]
[421410155,1777583439000,-500.0,0.00011873,2]
[421410160,1777583439000,-224.05914768,0.00011899,2]
[421410159,1777583439000,-354.2979632,0.00011899,2]
[421410154,1777583439000,-506.66271809,0.00011873,2]
[421410157,1777583439000,-199.4676384,0.00011873,2]
[421410153,1777583439000,-1350.0,0.00011869,2]
[421410158,1777583439000,-500.0,0.00011899,2]
[421410156,1777583439000,-355.95452853,0.00011873,2]
[421410190,1777583442000,-183.42369898,0.00011849,2]
[421410189,1777583442000,-502.7954507,0.00011849,2]
[421410198,1777583549000,150.0,0.000146,120]
[421410199,1777583737000,150.0,0.000146,120]
[421410200,1777583926000,150.0,0.000146,120]
[421410201,1777583957000,500.4361803,0.00027437,120]
[421410202,1777584048000,311.45101253,0.00027437,120]
[421410203,1777584114000,150.0,0.000146,120]
[421410208,1777584134000,-48004.7465,0.000116,2]
[421410207,1777584134000,-150.0,0.00011599,2]
[421410205,1777584134000,-469.8435,0.00011482,2]
[421410206,1777584134000,-1200.0,0.00011599,2]
[421410204,1777584134000,-175.41,0.00011437,2]
[421410211,1777584185000,-207.40137916,0.000115,2]
[421410213,1777584185000,-13634.3207,0.000116,2]
[421410214,1777584185000,-176.0,0.000116,3]
[421410215,1777584185000,-419.0,0.0001172,2]
[421410209,1777584185000,-372.667373,0.00011298,2]
[421410210,1777584185000,-371.76,0.00011355,2]
[421410212,1777584185000,-300.0,0.00011599,2]
[421410217,1777584185000,-5000.0,0.000118,2]
[421410218,1777584185000,-176.2135873,0.00011801,2]
[421410225,1777584185000,-18007.49174087,0.000119,2]
[421410223,1777584185000,-933.535,0.00011859,2]
[421410222,1777584185000,-6037.0,0.00011859,2]
[421410224,1777584185000,-356.11,0.00011859,2]
[421410216,1777584185000,-255.79221967,0.0001176,2]
[421410220,1777584185000,-1350.0,0.00011859,2]
[421410219,1777584185000,-1986.708,0.00011859,2]
[421410221,1777584185000,-416.0,0.00011859,2]
[421410234,1777584193000,-38405.62599443,0.00012,2]
[421410233,1777584193000,-155.362,0.00011999,2]
[421410228,1777584193000,-7016.87925913,0.000119,2]
[421410230,1777584193000,-1682.036,0.000119,2]
[421410231,1777584193000,-198.24,0.000119,2]
[421410232,1777584193000,-288.666,0.00011972,2]
[421410229,1777584193000,-1832.6626,0.000119,2]
[421410227,1777584193000,-170.52814644,0.0001176,2]
[421410226,1777584193000,-250.0,0.00011327,2]
[421410235,1777584195000,-50000.0,0.000115,2]
[421410236,1777584215000,500.0,0.00027437,120]
[421410237,1777584302000,150.0,0.000146,120]
[421410238,1777584457000,542.68,0.00027437,120]
[421410239,1777584479000,261.21643902,0.00027437,120]
[421410241,1777584491000,150.0,0.000146,120]
[421410252,1777584631000,-433204.31090504,0.000115,2]
[421410243,1777584631000,-28770.32869731,0.000114,2]
[421410244,1777584631000,-2329.13642934,0.0001146,2]
[421410245,1777584631000,-150.0,0.00011499,2]
[421410242,1777584631000,-1200.0,0.00011399,2]
[421410247,1777584631000,-416.53056669,0.00011499,2]
[421410246,1777584631000,-500.0,0.00011499,2]
[421410248,1777584631000,-500.0,0.00011499,2]
[421410249,1777584631000,-553.69885364,0.00011499,2]
[421410250,1777584631000,-354.2979632,0.00011499,2]